[Event "Late-Titled-Tuesday-Blitz-April-02-2024"]
[Site "Chess.com"]
[Date "2024.04.02"]
[Round "9"]
[White "Rashad_Zeynalli"]
[Black "Shankland"]
[Result "0-1"]
[WhiteElo "2696"]
[BlackElo "2896"]
[TimeControl "180+1"]
[EndTime "15:43:08 PDT"]
[Termination "Shankland won on time"]

1. d4 {[%clk 0:03:00.9]} 1... d5 {[%clk 0:02:59.3]} 2. Bf4 {[%clk 0:03:01.4]}
2... c5 {[%clk 0:02:58.5]} 3. e3 {[%clk 0:03:01.6]} 3... Nc6 {[%clk 0:02:58.5]}
4. Nf3 {[%clk 0:03:00.6]} 4... Nf6 {[%clk 0:02:57.9]} 5. Nbd2 {[%clk 0:03:00.1]}
5... Qb6 {[%clk 0:02:57.7]} 6. dxc5 {[%clk 0:02:58.4]} 6... Qxb2 {[%clk
0:02:54.5]} 7. Rb1 {[%clk 0:02:58.6]} 7... Qc3 {[%clk 0:02:51.5]} 8. Bb5 {[%clk
0:02:59]} 8... g6 {[%clk 0:02:51.2]} 9. O-O {[%clk 0:02:50.8]} 9... Bg7 {[%clk
0:02:49.8]} 10. Nd4 {[%clk 0:02:25.2]} 10... O-O {[%clk 0:01:57]} 11. N2b3
{[%clk 0:02:19]} 11... e5 {[%clk 0:01:54.2]} 12. Bxc6 {[%clk 0:02:12]} 12...
exf4 {[%clk 0:01:52.7]} 13. Ne2 {[%clk 0:01:32.6]} 13... Qb4 {[%clk 0:01:51]}
14. c3 {[%clk 0:01:08.9]} 14... Qe4 {[%clk 0:01:47]} 15. Nd2 {[%clk 0:01:08.3]}
15... Qe7 {[%clk 0:01:45.7]} 16. Ba4 {[%clk 0:00:59]} 16... fxe3 {[%clk
0:01:45.7]} 17. fxe3 {[%clk 0:00:59.9]} 17... Ng4 {[%clk 0:01:43]} 18. Nd4
{[%clk 0:00:53.7]} 18... Qxe3+ {[%clk 0:01:37.4]} 19. Kh1 {[%clk 0:00:53.7]}
19... Qh6 {[%clk 0:01:29.2]} 20. N2f3 {[%clk 0:00:52]} 20... Ne3 {[%clk
0:01:29.4]} 21. Qb3 {[%clk 0:00:51.7]} 21... Nxf1 {[%clk 0:01:28.8]} 22. Rxf1
{[%clk 0:00:52.6]} 22... Qf4 {[%clk 0:01:23.6]} 23. Qxd5 {[%clk 0:00:50.3]}
23... Qc7 {[%clk 0:01:21.5]} 24. Ng5 {[%clk 0:00:46.7]} 24... Bxd4 {[%clk
0:00:52.2]} 25. cxd4 {[%clk 0:00:42.3]} 25... Be6 {[%clk 0:00:52.4]} 26. Nxe6
{[%clk 0:00:41.3]} 26... fxe6 {[%clk 0:00:53.1]} 27. Qxe6+ {[%clk 0:00:41.9]}
27... Kg7 {[%clk 0:00:53.4]} 28. Rd1 {[%clk 0:00:32]} 28... Qf7 {[%clk
0:00:48.9]} 29. Qe5+ {[%clk 0:00:22.4]} 29... Qf6 {[%clk 0:00:48.2]} 30. Qc7+
{[%clk 0:00:20.6]} 30... Kh8 {[%clk 0:00:48.2]} 31. h3 {[%clk 0:00:17.8]} 31...
Rf7 {[%clk 0:00:46.7]} 32. Qg3 {[%clk 0:00:16.4]} 32... Rd8 {[%clk 0:00:43.4]}
33. Bb3 {[%clk 0:00:16.1]} 33... Qf4 {[%clk 0:00:33.1]} 34. Qc3 {[%clk 0:00:15]}
34... Re7 {[%clk 0:00:26.7]} 35. d5+ {[%clk 0:00:15]} 35... Qe5 {[%clk
0:00:26.9]} 36. Qb4 {[%clk 0:00:14.3]} 36... Rc7 {[%clk 0:00:24.9]} 37. a4
{[%clk 0:00:10.6]} 37... Kg7 {[%clk 0:00:22.1]} 38. Re1 {[%clk 0:00:10.3]} 38...
Qf6 {[%clk 0:00:21.4]} 39. d6 {[%clk 0:00:10.1]} 39... Rcd7 {[%clk 0:00:21.7]}
40. Bd5 {[%clk 0:00:08.6]} 40... b6 {[%clk 0:00:21]} 41. c6 {[%clk 0:00:07.3]}
41... Rxd6 {[%clk 0:00:20.6]} 42. c7 {[%clk 0:00:07.7]} 42... Rc8 {[%clk
0:00:20.7]} 43. Qc4 {[%clk 0:00:05.5]} 43... Rd7 {[%clk 0:00:17]} 44. Be6 {[%clk
0:00:03.1]} 44... Rcxc7 {[%clk 0:00:17]} 45. Qg4 {[%clk 0:00:02.7]} 45... Re7
{[%clk 0:00:17.3]} 0-1

[Event "Late-Titled-Tuesday-Blitz-April-02-2024"]
[Site "Chess.com"]
[Date "2024.04.02"]
[Round "9"]
[White "Mikhal867"]
[Black "Zavgorodniy_Sergiy"]
[Result "1/2-1/2"]
[WhiteElo "2530"]
[BlackElo "2638"]
[TimeControl "180+1"]
[EndTime "15:43:09 PDT"]
[Termination "Game drawn by repetition"]

1. c4 {[%clk 0:02:59.5]} 1... c5 {[%clk 0:02:59.6]} 2. Nc3 {[%clk 0:02:57.8]}
2... Nc6 {[%clk 0:02:59.8]} 3. g3 {[%clk 0:02:57.8]} 3... g6 {[%clk 0:03:00.3]}
4. Bg2 {[%clk 0:02:58.2]} 4... Bg7 {[%clk 0:03:00.9]} 5. e4 {[%clk 0:02:57.5]}
5... e6 {[%clk 0:03:01.1]} 6. Nge2 {[%clk 0:02:56.6]} 6... Nge7 {[%clk
0:03:01.6]} 7. d3 {[%clk 0:02:55.2]} 7... d6 {[%clk 0:03:01.2]} 8. Be3 {[%clk
0:02:54.1]} 8... Nd4 {[%clk 0:03:00.9]} 9. h3 {[%clk 0:02:51.8]} 9... Nec6
{[%clk 0:03:00.9]} 10. Nc1 {[%clk 0:02:45.4]} 10... O-O {[%clk 0:02:59.4]} 11.
O-O {[%clk 0:02:44.6]} 11... b6 {[%clk 0:02:58]} 12. f4 {[%clk 0:02:41.5]} 12...
Bb7 {[%clk 0:02:58]} 13. Kh2 {[%clk 0:02:39.7]} 13... Qd7 {[%clk 0:02:58]} 14.
g4 {[%clk 0:02:39.7]} 14... f5 {[%clk 0:02:57.7]} 15. exf5 {[%clk 0:02:39.1]}
15... gxf5 {[%clk 0:02:57.5]} 16. g5 {[%clk 0:02:35.4]} 16... Rae8 {[%clk
0:02:55.8]} 17. h4 {[%clk 0:02:27.8]} 17... h6 {[%clk 0:02:51.3]} 18. Rh1 {[%clk
0:02:23.2]} 18... Kh7 {[%clk 0:02:43]} 19. Kg3 {[%clk 0:02:19.4]} 19... e5
{[%clk 0:02:42.9]} 20. Nd5 {[%clk 0:02:13.4]} 20... exf4+ {[%clk 0:02:41]} 21.
Bxf4 {[%clk 0:02:12.7]} 21... Be5 {[%clk 0:02:33.1]} 22. Qh5 {[%clk 0:02:10.2]}
22... Re6 {[%clk 0:02:28.7]} 23. Nb3 {[%clk 0:02:00]} 23... Rg8 {[%clk
0:02:10.2]} 24. Rae1 {[%clk 0:01:43.2]} 24... Reg6 {[%clk 0:01:57.3]} 25. Kf2
{[%clk 0:01:40.3]} 25... Re6 {[%clk 0:01:41.5]} 26. Nxd4 {[%clk 0:01:22]} 26...
Bxd4+ {[%clk 0:01:40.4]} 27. Kg3 {[%clk 0:01:20.5]} 27... Ne5 {[%clk 0:01:32.9]}
28. Bxe5 {[%clk 0:01:00.2]} 28... Bxe5+ {[%clk 0:01:27]} 29. Kh3 {[%clk
0:01:00.2]} 29... f4 {[%clk 0:01:15.4]} 30. Bf3 {[%clk 0:00:57.7]} 30... Kh8
{[%clk 0:00:39.9]} 31. Bg4 {[%clk 0:00:56.7]} 31... Bc8 {[%clk 0:00:37.7]} 32.
Nxf4 {[%clk 0:00:45.8]} 32... Qe8 {[%clk 0:00:29]} 33. Nxe6 {[%clk 0:00:38.6]}
33... Qxh5 {[%clk 0:00:24.3]} 34. Bxh5 {[%clk 0:00:38.7]} 34... Bxe6+ {[%clk
0:00:24.7]} 35. Bg4 {[%clk 0:00:38.9]} 35... Bf7 {[%clk 0:00:24.7]} 36. Rxe5
{[%clk 0:00:31.8]} 36... dxe5 {[%clk 0:00:24.2]} 37. gxh6 {[%clk 0:00:31.5]}
37... Kh7 {[%clk 0:00:23.6]} 38. Re1 {[%clk 0:00:31.7]} 38... Re8 {[%clk
0:00:22.8]} 39. Rf1 {[%clk 0:00:31.8]} 39... Bg6 {[%clk 0:00:19.9]} 40. Rf6
{[%clk 0:00:31.1]} 40... Bxd3 {[%clk 0:00:19]} 41. b3 {[%clk 0:00:30.4]} 41...
e4 {[%clk 0:00:18.5]} 42. Bf5+ {[%clk 0:00:30.5]} 42... Kh8 {[%clk 0:00:18.1]}
43. Rf7 {[%clk 0:00:27.5]} 43... Bf1+ {[%clk 0:00:15.6]} 44. Kg3 {[%clk
0:00:26.7]} 44... e3 {[%clk 0:00:16.1]} 45. Rh7+ {[%clk 0:00:19.8]} 45... Kg8
{[%clk 0:00:16.3]} 46. Rg7+ {[%clk 0:00:20.2]} 46... Kh8 {[%clk 0:00:16.7]} 47.
Rh7+ {[%clk 0:00:20.3]} 47... Kg8 {[%clk 0:00:16.5]} 48. Rg7+ {[%clk 0:00:20.7]}
48... Kf8 {[%clk 0:00:09.7]} 49. Bg6 {[%clk 0:00:18.9]} 49... e2 {[%clk
0:00:08.7]} 50. Rf7+ {[%clk 0:00:18.2]} 50... Kg8 {[%clk 0:00:09.1]} 51. Rg7+
{[%clk 0:00:18.6]} 51... Kh8 {[%clk 0:00:09.6]} 52. Rh7+ {[%clk 0:00:18.6]}
52... Kg8 {[%clk 0:00:10.1]} 53. Rg7+ {[%clk 0:00:18.9]} 53... Kf8 {[%clk
0:00:10.5]} 54. Rf7+ {[%clk 0:00:18.7]} 54... Kg8 {[%clk 0:00:10.8]} 55. Rg7+
{[%clk 0:00:18.1]} 1/2-1/2

[Event "Late-Titled-Tuesday-Blitz-April-02-2024"]
[Site "Chess.com"]
[Date "2024.04.02"]
[Round "9"]
[White "MarceloPlaya"]
[Black "Ar4uha"]
[Result "0-1"]
[WhiteElo "2424"]
[BlackElo "2585"]
[TimeControl "180+1"]
[EndTime "15:43:16 PDT"]
[Termination "Ar4uha won on time"]

1. e4 {[%clk 0:03:00.9]} 1... c5 {[%clk 0:02:52.8]} 2. Nf3 {[%clk 0:02:59.2]}
2... Nc6 {[%clk 0:02:50.3]} 3. d4 {[%clk 0:02:59.1]} 3... cxd4 {[%clk
0:02:51.2]} 4. Nxd4 {[%clk 0:02:58.7]} 4... g6 {[%clk 0:02:49.9]} 5. Nc3 {[%clk
0:02:58.3]} 5... Bg7 {[%clk 0:02:49.8]} 6. Be3 {[%clk 0:02:58.2]} 6... Nf6
{[%clk 0:02:49.4]} 7. f3 {[%clk 0:02:54.4]} 7... O-O {[%clk 0:02:48.2]} 8. Qd2
{[%clk 0:02:53.6]} 8... d5 {[%clk 0:02:48]} 9. exd5 {[%clk 0:02:48]} 9... Nxd5
{[%clk 0:02:47.4]} 10. Nxd5 {[%clk 0:02:13.9]} 10... Qxd5 {[%clk 0:02:44.1]} 11.
Nxc6 {[%clk 0:02:12.2]} 11... Qxc6 {[%clk 0:02:30.8]} 12. O-O-O {[%clk
0:02:08.3]} 12... Bf5 {[%clk 0:02:20.1]} 13. Bd3 {[%clk 0:01:58.4]} 13... Rfd8
{[%clk 0:02:19.6]} 14. Kb1 {[%clk 0:01:50.1]} 14... Qf6 {[%clk 0:02:02.1]} 15.
Qb4 {[%clk 0:01:37.4]} 15... Bxd3 {[%clk 0:01:55.5]} 16. Rxd3 {[%clk 0:01:33.7]}
16... Rxd3 {[%clk 0:01:54.4]} 17. cxd3 {[%clk 0:01:33.4]} 17... a5 {[%clk
0:01:49.9]} 18. Qb6 {[%clk 0:01:28.3]} 18... Qf5 {[%clk 0:01:41.6]} 19. Rd1
{[%clk 0:01:23.4]} 19... a4 {[%clk 0:01:32.6]} 20. Qxb7 {[%clk 0:01:19.3]} 20...
Rc8 {[%clk 0:01:30.2]} 21. Qb4 {[%clk 0:01:13]} 21... Qe5 {[%clk 0:00:48.9]} 22.
Bc1 {[%clk 0:01:09.6]} 22... Rb8 {[%clk 0:00:39.1]} 23. Qa3 {[%clk 0:00:52.4]}
23... Qd4 {[%clk 0:00:36.2]} 24. Rd2 {[%clk 0:00:42]} 24... e6 {[%clk
0:00:34.3]} 25. Rc2 {[%clk 0:00:40.2]} 25... h5 {[%clk 0:00:26.7]} 26. Bd2
{[%clk 0:00:26.7]} 26... Qg1+ {[%clk 0:00:22.2]} 27. Bc1 {[%clk 0:00:23.3]}
27... Qxh2 {[%clk 0:00:21.3]} 28. Qxa4 {[%clk 0:00:22]} 28... Qe5 {[%clk
0:00:17.1]} 29. Qc4 {[%clk 0:00:18.6]} 29... Qe1 {[%clk 0:00:13.3]} 30. a4
{[%clk 0:00:14.9]} 30... Rb4 {[%clk 0:00:10.2]} 31. Qc8+ {[%clk 0:00:13.3]}
31... Kh7 {[%clk 0:00:10.3]} 32. a5 {[%clk 0:00:09.3]} 32... Ra4 {[%clk
0:00:08.5]} 33. a6 {[%clk 0:00:06.7]} 33... Qa5 {[%clk 0:00:08.9]} 34. Rc4
{[%clk 0:00:03.6]} 34... Ra1+ {[%clk 0:00:07.4]} 35. Kc2 {[%clk 0:00:03.8]}
35... Qa2 {[%clk 0:00:04.8]} 36. Qb7 {[%clk 0:00:02.7]} 36... Qb1+ {[%clk
0:00:05.2]} 37. Kb3 {[%clk 0:00:02.8]} 37... Qa2+ {[%clk 0:00:03.8]} 38. Kc2
{[%clk 0:00:02.6]} 38... Qb1+ {[%clk 0:00:03.8]} 39. Kd2 {[%clk 0:00:02.7]}
39... Bh6+ {[%clk 0:00:03.3]} 40. Ke2 {[%clk 0:00:01.7]} 40... Bxc1 {[%clk
0:00:02.4]} 41. a7 {[%clk 0:00:01.7]} 41... Kh6 {[%clk 0:00:03.3]} 42. a8=Q
{[%clk 0:00:01.3]} 42... Bxb2 {[%clk 0:00:03.6]} 0-1

[Event "Late-Titled-Tuesday-Blitz-April-02-2024"]
[Site "Chess.com"]
[Date "2024.04.02"]
[Round "9"]
[White "MasterSonnevanck23"]
[Black "PhileKhoob"]
[Result "0-1"]
[WhiteElo "2387"]
[BlackElo "2279"]
[TimeControl "180+1"]
[EndTime "15:43:17 PDT"]
[Termination "PhileKhoob won on time"]

1. d4 {[%clk 0:03:00.9]} 1... d5 {[%clk 0:02:59.8]} 2. Nf3 {[%clk 0:03:00.6]}
2... Nf6 {[%clk 0:02:59.5]} 3. c4 {[%clk 0:03:00.3]} 3... c6 {[%clk 0:02:59.8]}
4. e3 {[%clk 0:02:58.8]} 4... e6 {[%clk 0:02:54.7]} 5. Bd3 {[%clk 0:02:57.9]}
5... Nbd7 {[%clk 0:02:52.8]} 6. b3 {[%clk 0:02:57.7]} 6... Bd6 {[%clk
0:02:52.3]} 7. Bb2 {[%clk 0:02:54.6]} 7... O-O {[%clk 0:02:52.8]} 8. O-O {[%clk
0:02:53.5]} 8... Re8 {[%clk 0:02:52.4]} 9. Ne5 {[%clk 0:02:48.6]} 9... c5 {[%clk
0:02:48.4]} 10. Nd2 {[%clk 0:02:37.1]} 10... b6 {[%clk 0:02:40.1]} 11. f4 {[%clk
0:02:28.2]} 11... Bb7 {[%clk 0:02:37.1]} 12. Nxd7 {[%clk 0:02:21.4]} 12... Qxd7
{[%clk 0:02:31.5]} 13. dxc5 {[%clk 0:02:13.7]} 13... Bxc5 {[%clk 0:02:30.4]} 14.
Bxf6 {[%clk 0:02:12.2]} 14... Bxe3+ {[%clk 0:02:25.7]} 15. Kh1 {[%clk
0:02:09.5]} 15... gxf6 {[%clk 0:02:25]} 16. Qg4+ {[%clk 0:01:46.3]} 16... Kf8
{[%clk 0:02:24.7]} 17. Nf3 {[%clk 0:01:37.1]} 17... d4 {[%clk 0:02:20.5]} 18.
Qh4 {[%clk 0:01:25.7]} 18... Ke7 {[%clk 0:02:14.5]} 19. Ne5 {[%clk 0:01:10.4]}
19... Qc7 {[%clk 0:02:02.4]} 20. Ng4 {[%clk 0:01:02.2]} 20... Rg8 {[%clk
0:02:01.7]} 21. Bxh7 {[%clk 0:00:50.6]} 21... Rh8 {[%clk 0:01:34.1]} 22. Qxf6+
{[%clk 0:00:45.5]} 22... Kd6 {[%clk 0:01:33.7]} 23. Nxe3 {[%clk 0:00:39.5]}
23... Rxh7 {[%clk 0:01:22.6]} 24. Rad1 {[%clk 0:00:36.9]} 24... Rah8 {[%clk
0:01:13.5]} 25. Nf5+ {[%clk 0:00:20.3]} 25... Kd7 {[%clk 0:00:55.8]} 26. Qxd4+
{[%clk 0:00:11.8]} 26... Kc8 {[%clk 0:00:54.5]} 27. Nd6+ {[%clk 0:00:10.7]}
27... Kb8 {[%clk 0:00:53.3]} 28. Nxb7 {[%clk 0:00:09.5]} 28... Rxh2+ {[%clk
0:00:40.9]} 29. Kg1 {[%clk 0:00:09.1]} 29... Kxb7 {[%clk 0:00:33.3]} 30. Qe4+
{[%clk 0:00:09]} 30... Ka6 {[%clk 0:00:26.5]} 31. b4 {[%clk 0:00:08.5]} 31...
Qe7 {[%clk 0:00:18.9]} 32. Rd3 {[%clk 0:00:06.4]} 32... Qxb4 {[%clk 0:00:14.2]}
33. Qe3 {[%clk 0:00:04.6]} 33... Rh1+ {[%clk 0:00:13.1]} 34. Kf2 {[%clk
0:00:03.5]} 34... Rxf1+ {[%clk 0:00:13.5]} 35. Kxf1 {[%clk 0:00:03.6]} 35...
Qb1+ {[%clk 0:00:13.6]} 36. Kf2 {[%clk 0:00:03.5]} 36... Qxa2+ {[%clk
0:00:13.1]} 37. Rd2 {[%clk 0:00:03.5]} 37... Qxc4 {[%clk 0:00:12.9]} 38. Qa3+
{[%clk 0:00:02.9]} 38... Kb7 {[%clk 0:00:12]} 39. Rd7+ {[%clk 0:00:02.5]} 39...
Kc6 {[%clk 0:00:11.8]} 40. Qxa7 {[%clk 0:00:02.1]} 40... Qxf4+ {[%clk
0:00:08.9]} 41. Ke2 {[%clk 0:00:02]} 41... Qe4+ {[%clk 0:00:08.3]} 42. Kf2
{[%clk 0:00:02.1]} 42... Qf5+ {[%clk 0:00:07]} 43. Ke2 {[%clk 0:00:02.1]} 43...
Qg4+ {[%clk 0:00:05.7]} 44. Kf2 {[%clk 0:00:02.1]} 44... Rh5 {[%clk 0:00:02.7]}
45. Qc7+ {[%clk 0:00:01.2]} 45... Kb5 {[%clk 0:00:02.2]} 0-1

[Event "Late-Titled-Tuesday-Blitz-April-02-2024"]
[Site "Chess.com"]
[Date "2024.04.02"]
[Round "9"]
[White "sergiochess83"]
[Black "combidharma"]
[Result "1/2-1/2"]
[WhiteElo "2963"]
[BlackElo "2856"]
[TimeControl "180+1"]
[EndTime "15:43:20 PDT"]
[Termination "Game drawn by repetition"]

1. d4 {[%clk 0:02:54.1]} 1... Nf6 {[%clk 0:02:58.5]} 2. c4 {[%clk 0:02:53.8]}
2... g6 {[%clk 0:02:58.5]} 3. Nc3 {[%clk 0:02:50.8]} 3... Bg7 {[%clk 0:02:59.1]}
4. e4 {[%clk 0:02:50.6]} 4... d6 {[%clk 0:02:59.1]} 5. h3 {[%clk 0:02:49.5]}
5... O-O {[%clk 0:02:58.4]} 6. Bg5 {[%clk 0:02:50]} 6... c5 {[%clk 0:02:56.1]}
7. d5 {[%clk 0:02:46.7]} 7... e6 {[%clk 0:02:46.3]} 8. Nf3 {[%clk 0:02:38.6]}
8... exd5 {[%clk 0:02:28.8]} 9. exd5 {[%clk 0:02:38.1]} 9... h6 {[%clk
0:02:18.9]} 10. Be3 {[%clk 0:02:31.7]} 10... Nbd7 {[%clk 0:02:08.1]} 11. Qd2
{[%clk 0:02:26.7]} 11... g5 {[%clk 0:02:07.5]} 12. Bd3 {[%clk 0:02:18.1]} 12...
Re8 {[%clk 0:02:05.9]} 13. O-O {[%clk 0:02:13.4]} 13... Nh5 {[%clk 0:01:51.9]}
14. g4 {[%clk 0:01:27.7]} 14... Nhf6 {[%clk 0:01:38.6]} 15. Rae1 {[%clk
0:01:26.4]} 15... Nf8 {[%clk 0:01:35.1]} 16. Qc2 {[%clk 0:01:16.7]} 16... Bd7
{[%clk 0:01:22.2]} 17. Nd2 {[%clk 0:01:10.7]} 17... Qc8 {[%clk 0:01:17.6]} 18.
f3 {[%clk 0:01:05.2]} 18... Kh8 {[%clk 0:00:30.6]} 19. Kg2 {[%clk 0:01:05.1]}
19... Re7 {[%clk 0:00:20.3]} 20. Bf2 {[%clk 0:00:56.7]} 20... Rxe1 {[%clk
0:00:19.3]} 21. Rxe1 {[%clk 0:00:56.5]} 21... Qc7 {[%clk 0:00:19.4]} 22. h4
{[%clk 0:00:55.9]} 22... Re8 {[%clk 0:00:17.3]} 23. Rxe8 {[%clk 0:00:53.3]}
23... Bxe8 {[%clk 0:00:18.2]} 24. hxg5 {[%clk 0:00:53.9]} 24... hxg5 {[%clk
0:00:18.8]} 25. Be3 {[%clk 0:00:53.3]} 25... Bh6 {[%clk 0:00:17.7]} 26. Nce4
{[%clk 0:00:51.5]} 26... Nxe4 {[%clk 0:00:17.8]} 27. Nxe4 {[%clk 0:00:51.5]}
27... Qe7 {[%clk 0:00:18.2]} 28. b4 {[%clk 0:00:44.5]} 28... b6 {[%clk
0:00:17.7]} 29. bxc5 {[%clk 0:00:44.1]} 29... bxc5 {[%clk 0:00:18.6]} 30. Qb2+
{[%clk 0:00:43.2]} 30... Bg7 {[%clk 0:00:18.7]} 31. Qb8 {[%clk 0:00:43]} 31...
Be5 {[%clk 0:00:12.3]} 32. Bxg5 {[%clk 0:00:43.1]} 32... f6 {[%clk 0:00:12.7]}
33. Nxf6 {[%clk 0:00:32.8]} 33... Bxf6 {[%clk 0:00:05.6]} 34. Bxf6+ {[%clk
0:00:33.7]} 34... Qxf6 {[%clk 0:00:06.5]} 35. Qxe8 {[%clk 0:00:33.6]} 35... Kg7
{[%clk 0:00:07.4]} 36. Kg3 {[%clk 0:00:30.7]} 36... Qa1 {[%clk 0:00:06.6]} 37.
Qe7+ {[%clk 0:00:30]} 37... Kg8 {[%clk 0:00:06.7]} 38. Qg5+ {[%clk 0:00:17.7]}
38... Kf7 {[%clk 0:00:05.4]} 39. Qf4+ {[%clk 0:00:17.4]} 39... Ke7 {[%clk
0:00:04.4]} 40. Qe3+ {[%clk 0:00:16.1]} 40... Kf7 {[%clk 0:00:04.2]} 41. Qf4+
{[%clk 0:00:05.8]} 41... Ke7 {[%clk 0:00:03.5]} 42. Qd2 {[%clk 0:00:05.9]} 42...
Qg1+ {[%clk 0:00:02.9]} 43. Kh3 {[%clk 0:00:06.3]} 43... Qh1+ {[%clk 0:00:02.3]}
44. Kg3 {[%clk 0:00:07]} 44... Qg1+ {[%clk 0:00:02.4]} 45. Kh4 {[%clk
0:00:06.9]} 45... Qd4 {[%clk 0:00:02.2]} 46. Qe2+ {[%clk 0:00:06]} 46... Kf7
{[%clk 0:00:02.7]} 47. Kg3 {[%clk 0:00:05.1]} 47... Qf6 {[%clk 0:00:01.9]} 48.
Qe3 {[%clk 0:00:04.7]} 48... Qa1 {[%clk 0:00:02]} 49. Qf4+ {[%clk 0:00:04.9]}
1/2-1/2

[Event "Late-Titled-Tuesday-Blitz-April-02-2024"]
[Site "Chess.com"]
[Date "2024.04.02"]
[Round "9"]
[White "Squirlolz"]
[Black "ameetghasi100"]
[Result "1-0"]
[WhiteElo "2589"]
[BlackElo "2774"]
[TimeControl "180+1"]
[EndTime "15:43:20 PDT"]
[Termination "Squirlolz won by resignation"]

1. b3 {[%clk 0:03:00.9]} 1... d5 {[%clk 0:02:55]} 2. Bb2 {[%clk 0:03:01.7]} 2...
c6 {[%clk 0:02:55.4]} 3. e3 {[%clk 0:03:01.8]} 3... Bf5 {[%clk 0:02:55.7]} 4. f4
{[%clk 0:03:01.9]} 4... f6 {[%clk 0:02:55]} 5. Nf3 {[%clk 0:03:02.6]} 5... Nd7
{[%clk 0:02:54.3]} 6. h3 {[%clk 0:02:59.8]} 6... Nh6 {[%clk 0:02:54.2]} 7. g4
{[%clk 0:02:59.7]} 7... Bg6 {[%clk 0:02:54.5]} 8. Bg2 {[%clk 0:02:58.8]} 8...
Qc7 {[%clk 0:02:55]} 9. Qe2 {[%clk 0:02:58.4]} 9... e5 {[%clk 0:02:54.6]} 10. f5
{[%clk 0:02:58.1]} 10... Bf7 {[%clk 0:02:54.1]} 11. d3 {[%clk 0:02:58.7]} 11...
O-O-O {[%clk 0:02:53.4]} 12. e4 {[%clk 0:02:58.8]} 12... Ng8 {[%clk 0:02:51.9]}
13. Nbd2 {[%clk 0:02:58.5]} 13... Ne7 {[%clk 0:02:51.9]} 14. c4 {[%clk
0:02:56.5]} 14... d4 {[%clk 0:02:49]} 15. h4 {[%clk 0:02:54.6]} 15... g6 {[%clk
0:02:46.7]} 16. O-O-O {[%clk 0:02:50.3]} 16... Kb8 {[%clk 0:02:44.4]} 17. g5
{[%clk 0:02:44.6]} 17... Bg7 {[%clk 0:02:44.2]} 18. Bh3 {[%clk 0:02:38.6]} 18...
a5 {[%clk 0:02:41.7]} 19. h5 {[%clk 0:02:37]} 19... gxh5 {[%clk 0:02:37.4]} 20.
Rdg1 {[%clk 0:02:22.1]} 20... Nc5 {[%clk 0:02:34.9]} 21. gxf6 {[%clk 0:02:20.9]}
21... Bxf6 {[%clk 0:02:35.8]} 22. Ng5 {[%clk 0:02:19.9]} 22... Bxg5 {[%clk
0:02:11.7]} 23. Rxg5 {[%clk 0:02:19.5]} 23... Ng8 {[%clk 0:02:12.2]} 24. Ba3
{[%clk 0:02:14.8]} 24... Qb6 {[%clk 0:02:11.3]} 25. Nf3 {[%clk 0:02:06.2]} 25...
Re8 {[%clk 0:02:01.6]} 26. f6 {[%clk 0:02:01.4]} 26... Ne6 {[%clk 0:00:59.2]}
27. Nxe5 {[%clk 0:01:59.8]} 27... Qc7 {[%clk 0:00:53.4]} 28. Qh2 {[%clk
0:00:53]} 28... Nxf6 {[%clk 0:00:20.5]} 29. Nxc6+ {[%clk 0:00:16.8]} 29... Kc8
{[%clk 0:00:10.6]} 30. Bd6 {[%clk 0:00:12.7]} 30... Qxc6 {[%clk 0:00:09.9]} 31.
Rc5 {[%clk 0:00:12.9]} 31... Nd7 {[%clk 0:00:04.2]} 32. Rxc6+ {[%clk 0:00:12.6]}
32... bxc6 {[%clk 0:00:05.1]} 33. Rf1 {[%clk 0:00:08.5]} 33... Bg6 {[%clk
0:00:05.3]} 34. c5 {[%clk 0:00:05.8]} 34... h4 {[%clk 0:00:03]} 35. Qc2 {[%clk
0:00:04.2]} 35... Kb7 {[%clk 0:00:03.1]} 36. Qc4 {[%clk 0:00:04]} 36... Ng5
{[%clk 0:00:01.3]} 37. Bxd7 {[%clk 0:00:03.5]} 37... Rd8 {[%clk 0:00:02]} 38.
Bxc6+ {[%clk 0:00:03]} 38... Kxc6 {[%clk 0:00:02.9]} 39. Qd5+ {[%clk 0:00:03.5]}
39... Kd7 {[%clk 0:00:03.5]} 40. c6+ {[%clk 0:00:03.8]} 40... Kc8 {[%clk
0:00:03.8]} 41. c7 {[%clk 0:00:03.1]} 41... Rxd6 {[%clk 0:00:03.6]} 42. Qxd6
{[%clk 0:00:03.9]} 42... Re8 {[%clk 0:00:02.6]} 43. Rf8 {[%clk 0:00:04.1]} 43...
Ne6 {[%clk 0:00:02.9]} 44. Rxe8+ {[%clk 0:00:04.3]} 44... Bxe8 {[%clk
0:00:03.8]} 45. Qxe6+ {[%clk 0:00:04.9]} 45... Bd7 {[%clk 0:00:04.7]} 46. Qd6
{[%clk 0:00:04.1]} 46... h3 {[%clk 0:00:05.1]} 47. Kd2 {[%clk 0:00:03.8]} 47...
h5 {[%clk 0:00:05.1]} 48. Ke1 {[%clk 0:00:04.3]} 48... Bg4 {[%clk 0:00:05.6]}
49. Kf2 {[%clk 0:00:04.7]} 49... Kb7 {[%clk 0:00:06.5]} 50. Kg1 {[%clk
0:00:05.3]} 50... Bc8 {[%clk 0:00:07.4]} 51. Kh2 {[%clk 0:00:05.8]} 51... Bg4
{[%clk 0:00:07.9]} 52. e5 {[%clk 0:00:06.3]} 52... Bc8 {[%clk 0:00:08.8]} 53. e6
{[%clk 0:00:06.9]} 53... Bxe6 {[%clk 0:00:09.4]} 54. Qxe6 {[%clk 0:00:07.3]}
54... Kxc7 {[%clk 0:00:10.3]} 55. Kxh3 {[%clk 0:00:07.4]} 1-0